Cogmind - Beta 15 @@@ ROGUE MODE // 2025.09.12 @ 16:44:21 Player: Petvaria Result: Destroyed by 4M-UXE(R) with Subdweller Laser Performance ------------- Evolutions (0) 0 Regions Visited (2) 400 Robots Destroyed (9) 45 Value Destroyed (241) 241 Prototype IDs (0) 0 Alien Tech Used (0) 0 Bonus (0) 0 TOTAL SCORE: 686 Bonus ------- None Cogmind --------- Core Integrity 0/250 Matter 229/300 Energy 44/100 System Corruption 0% Temperature Cool (15) Movement Core (100) Ox1 Location -10/Subcaves Parts ------- > --- POWER (1) -------- (None) > --- PROPULSION (2) --- (None) > --- UTILITY (2) ------ (None) > --- WEAPON (2) ------- Beamcaster > --- INVENTORY (5) ---- Light Ion Engine Aluminum Leg Aluminum Leg Compact Wheel Peak State ------------ > --- POWER ------------ Ion Engine > --- PROPULSION ------- Light Treads Light Treads > --- UTILITY ---------- Scrap Shield > --- WEAPON ----------- Light Assault Rifle Light Assault Rifle > --- INVENTORY -------- Light Ion Engine Aluminum Leg Aluminum Leg Compact Wheel EM Pulse Gun [Rating: 9] Favorites ----------- Power Ion Engine Engine Ion Engine Propulsion Light Treads Treads Light Treads Utility Small Storage Unit Storage Small Storage Unit Protection Propulsion Shielding Weapon Light Assault Rifle Energy Gun EM Pulse Gun Ballistic Gun Light Assault Rifle Build | -11 -10 -10 ------- Run | Yrd Mat Sub Slots Evolved . | . . . Power . | . . . Propulsion . | . . . Utility . | . . . Weapon . | . . . Parts Attached 11 | 6 2 3 Power 1 | 1 . . Engine 1 | 1 . . Core . | . . . Reactor . | . . . Propulsion 2 | 2 . . Treads 2 | 2 . . Leg . | . . . Wheel . | . . . Hover . | . . . Flight . | . . . Utility 3 | 1 1 1 Device . | . . . Storage 1 | 1 . . Processor . | . . . Hackware . | . . . Protection 2 | . 1 1 Artifact . | . . . Weapon 5 | 2 1 2 Energy Gun 3 | 1 . 2 Energy Cannon . | . . . Ballistic Gun 2 | 1 1 . Ballistic Cannon . | . . . Launcher . | . . . Special Weapon . | . . . Impact Weapon . | . . . Slashing Weapon . | . . . Piercing Weapon . | . . . Special Melee Weapon . | . . . Unidentified Prototypes . | . . . Parts Lost 8 | . 1 7 Power 1 | . . 1 Propulsion 2 | . . 2 Utility 1 | . . 1 Weapon 4 | . 1 3 Highest Loss Streak 7 | . 1 7 To Critical Strikes . | . . . Average Backups 5 | 3 6 5 Power . | . 1 1 Propulsion 3 | 1 4 3 Utility . | . . . Weapon 1 | . 1 . Tool/Special . | . . . Unused Backups 5 | . . 5 Power 1 | . . 1 Propulsion 4 | . . 4 Utility . | . . . Weapon . | . . . Tool/Special . | . . . Average Slot Usage (%) 87 | . 90 78 Engine 13 | . 13 12 Treads 26 | . 27 25 Storage 11 | . 14 1 Protection 7 | . 6 12 Energy Gun 2 | . 3 . Ballistic Gun 24 | . 23 24 Peak Build Rating 9 | 6 7 9 Average Rating 6 | 4 6 8 On Entrance 4 | . 6 7 Naked Turns 4 | . . 4 Heaviest Build 25 | 13 13 25 Greatest Support 40 | 40 40 40 Greatest Overweight (x) 3 | . 3 . Average Overweight (x) . | . . . Largest Inventory Capacity 8 | 8 8 8 Average Capacity 7 | 7 8 5 Most Carried 8 | 6 8 6 Average Carried 5 | 3 6 4 Final Capacity 8 | 8 8 5 Final Carried 6 | 6 6 4 Class Distribution -------------------- 100% | Mutant Dominant Class ---------------- Mutant | -10/Materials Mutant | -10/Subcaves Resources | -11 -10 -10 ----------- Run | Yrd Mat Sub Matter Collected 299 | 260 39 . Remotely . | . . . Salvage Created 295 | . 206 89 Parts 18 | . 13 5 Haulers Intercepted . | . . . Recyclers Shooed . | . . . Parts Field Recycled . | . . . Retrieved Matter . | . . . Parts Self-Destructed . | . . . Prevented . | . . . Kills | -11 -10 -10 ------- Run | Yrd Mat Sub Combat Hostiles Destroyed 8 | . 6 2 Guns 8 | . 6 2 Classes Destroyed 4 | . 3 1 Operator 1 | . 1 . Swarmer 3 | . 3 . Grunt 3 | . 3 . Subdweller 2 | . . 2 Best Kill Streak 4 | . 4 1 Combat Bots Only 4 | . 4 1 Max Kills in Single Turn 1 | . 1 1 Gunslinging . | . . . Exploded . | . . . Melee . | . . . Uniques/NPCs Destroyed . | . . . Combat | -11 -10 -10 -------- Run | Yrd Mat Sub Hostile Shots Fired 72 | . 24 48 Missed 23 | . 10 13 Hits 49 | . 14 35 Projectile 49 | . 14 35 Critical Strikes 2 | . . 2 Damage Taken 1003 | . 148 855 Core 258 | . 41 217 Absorbed by Shields . | . . . Core Remaining (%) 100 | 100 . . Volleys Fired 27 | . 16 11 Largest 2 | . 2 2 Hottest 75 | . 60 75 Shots Fired 49 | . 31 18 Gun 49 | . 31 18 Cannon . | . . . Launcher . | . . . Special . | . . . Kinetic 36 | . 22 14 Thermal 1 | . . 1 Explosive . | . . . Electromagnetic 12 | . 9 3 Robot Hit Streak 11 | . 7 11 Robot Miss Streak 2 | . 2 2 Penetration Max . | . . . Secondary Targets 2 | . 1 1 Max Gunslinging Chain 1 | . 1 1 Shots Hit Robots 34 | . 19 15 Core Hits 21 | . 14 7 Critical Kills . | . . . Critical Parts Destroyed . | . . . Critical Strikes . | . . . Melee Attacks . | . . . Impact . | . . . Slashing . | . . . Piercing . | . . . Sneak Attacks . | . . . Combat Hostiles . | . . . Follow-up Attacks . | . . . Damage Inflicted 353 | . 176 177 Guns 353 | . 176 177 Cannons . | . . . Explosions . | . . . Melee . | . . . Ramming . | . . . Kinetic 224 | . 102 122 Thermal 21 | . . 21 Explosive . | . . . Electromagnetic 108 | . 74 34 Impact . | . . . Slashing . | . . . Piercing . | . . . Highest Corruption . | . . . Average Corruption . | . . . Corruption Purged . | . . . Corruption Blocked . | . . . Overload Shots . | . . . Overflow Damage . | . . . Projectiles . | . . . Explosions . | . . . Melee . | . . . Knockbacks . | . . . Impact . | . . . Kinetic . | . . . Secondary . | . . . Self-Inflicted Damage . | . . . Shots . | . . . Rammed . | . . . Targets Rammed . | . . . Kicked . | . . . Crushed . | . . . Highest Temperature 67 | . 67 4 Average Temperature 20 | . 22 2 Received Heat Transfer 273 | . 66 207 Siege Activations . | . . . Martial Activations . | . . . Shielding Activations . | . . . Robots Disrupted . | . . . Combat Hostiles . | . . . Robots Corrupted . | . . . Combat Hostiles . | . . . Parts Fried . | . . . Impact Corruptions . | . . . Robots Melted . | . . . Combat Hostiles . | . . . Parts Melted . | . . . Heat Transferred 37 | . . 37 Parts Sabotaged . | . . . Parts Stolen . | . . . Parts Stripped . | . . . Power Chain Reactions . | . . . Alert | -11 -10 -10 ------- Run | Yrd Mat Sub Maximum Alert Level . | . . . Low Security (%) 100 | 100 100 . Level 1 . | . . . Level 2 . | . . . Level 3 . | . . . Level 4 . | . . . Level 5 . | . . . High Security . | . . . Max Security . | . . . Peak Influence 95 | . 95 . Initial . | . . . Average 21 | . 25 . Influence Increases 160 | . 160 . Destroy 0b10 Robot/C 120 | . 120 . Destroy 0b10 Robot/NC 5 | . 5 . Destroy Leader 20 | . 20 . Lose Combat Pursuer 15 | . 15 . Influence Decreases 160 | . 160 . Time Decay 150 | . 150 . Lost Part 10 | . 10 . Squads Dispatched . | . . . Investigation . | . . . Extermination . | . . . Reinforcement . | . . . Assault . | . . . Garrison . | . . . Intercept . | . . . Searches Triggered . | . . . Construction Impeded . | . . . Haulers Reinforced . | . . . Active Scanning Responses . | . . . Cargo Convoy Interrupts . | . . . Stealth | -11 -10 -10 --------- Run | Yrd Mat Sub Distress Signals 1 | . 1 . Communications Jammed . | . . . Distress Signals . | . . . Times Spotted 21 | . 14 7 Peak Tracking Total 6 | . 5 6 Tactical Retreats 1 | . 1 . Traps | -11 -10 -10 ------- Run | Yrd Mat Sub Traps Triggered 3 | . 3 . Indirectly . | . . . Trap Hack Attempts . | . . . Triggered . | . . . Disarmed . | . . . Reprogrammed . | . . . Reused . | . . . Traps Extracted . | . . . Installed . | . . . Triggered . | . . . Machines | -11 -10 -10 ---------- Run | Yrd Mat Sub Machines Disabled . | . . . Max in Single Turn . | . . . Machines Repaired . | . . . Machines Dismantled . | . . . Machines Sabotaged . | . . . Overloaded Fab Kills . | . . . Hacking | -11 -10 -10 --------- Run | Yrd Mat Sub Machines Accessed . | . . . Terminals . | . . . Fabricators . | . . . Repair Stations . | . . . Recycling Units . | . . . Scanalyzers . | . . . Garrison Access . | . . . Total Hacks . | . . . Successful . | . . . Failed . | . . . Catastrophic . | . . . Database Lockouts . | . . . Manual . | . . . Terminals . | . . . Fabricators . | . . . Repair Stations . | . . . Recycling Units . | . . . Scanalyzers . | . . . Garrison Access . | . . . Terminal Hacks . | . . . Fabricator Hacks . | . . . Repair Station Hacks . | . . . Recycling Unit Hacks . | . . . Scanalyzer . | . . . Garrison Access Hacks . | . . . Unauthorized Hacks . | . . . Terminals . | . . . Fabricators . | . . . Repair Stations . | . . . Recycling Units . | . . . Scanalyzers . | . . . Garrison Access . | . . . Data Cores Recovered 1 | . 1 . Used . | . . . Hacking Detections . | . . . Full Trace Events . | . . . Feedback Events . | . . . Feedback Blocked . | . . . Robot Schematics Acquired . | . . . Robots Built . | . . . Authchips . | . . . Time . | . . . Total Robot Build Rating . | . . . Part Schematics Acquired . | . . . Parts Built . | . . . Authchips . | . . . Time . | . . . Total Part Build Rating . | . . . Parts Repaired . | . . . Time . | . . . Parts Recycled . | . . . Recycled Matter . | . . . Retrieved Matter . | . . . Retrieved Components . | . . . Parts Scanalyzed . | . . . Part Schematics Acquired . | . . . Parts Damaged . | . . . Bothacking | -11 -10 -10 ------------ Run | Yrd Mat Sub Used RIF Installer . | . . . Robots Hacked . | . . . Non-combat . | . . . Combat . | . . . Robot Hacks Applied . | . . . Relay Couplers Released . | . . . Fabnet Peak Effective % . | . . . Robots Rewired . | . . . Allies Hacked . | . . . Hacks Repelled . | . . . Allies | -11 -10 -10 -------- Run | Yrd Mat Sub Total Allies . | . . . Largest Group . | . . . Highest-Rated Group . | . . . Highest-Rated Ally . | . . . Total Orders . | . . . Ally Attacks . | . . . Total Damage . | . . . Kills . | . . . Allies Corrupted . | . . . Allies Melted 1 | . . 1 Intel | -11 -10 -10 ------- Run | Yrd Mat Sub Active Infowar (turns) . | . . . Robot Analysis Total . | . . . Derelict Logs Recovered . | . . . Drone Launches . | . . . Drone Recoveries . | . . . Exploration | -11 -10 -10 ------------- Run | Yrd Mat Sub Turns Passed 830 | 107 556 167 Spaces Moved 373 | 60 237 76 Core 14 | 9 2 3 Treads 359 | 51 235 73 Legs . | . . . Wheels . | . . . Hover . | . . . Flight . | . . . Fastest Speed 50 | 50 160 50 Average Speed 156 | 143 160 155 Slowest Speed 200 | 160 200 160 Overloaded Moves . | . . . Propulsion Burnouts . | . . . Robots Hopped . | . . . Potential Cave-ins . | . . . Cave-ins Triggered . | . . . Exploration Rate (%) 19 | 5 47 5 Regions Visited 2 Branch Regions 1 Pre-discovered Areas . | . . . Known Exits Taken . | . . . Unknown Exits Taken 2 | 1 1 . Scrap Searched . | . . . Spaces Dug . | . . . Terrain Destroyed . | . . . Melee . | . . . Projectile . | . . . AOE . | . . . Terrain Rammed . | . . . Walls Destroyed . | . . . Machines Disabled . | . . . Actions | -11 -10 -10 --------- Run | Yrd Mat Sub Total 578 | 81 385 112 Wait 142 | 4 120 18 Move 371 | 59 236 76 Hop . | . . . Pick Up 18 | 12 5 1 Fast Attach 4 | . 3 1 Attach 13 | 6 5 2 Detach . | . . . Swap . | . . . Drop 3 | . . 3 Fire 27 | . 16 11 Melee . | . . . Ram . | . . . Kick . | . . . Crush . | . . . Escape Stasis . | . . . Rewire . | . . . Trap . | . . . Miscellaneous . | . . . Route ------- -11/Scrapyard -10/Materials (discovered 3 exits: [*Mat x2] / [*Sub]) -10/Subcaves History --------- Turn | Location | Event 2 | -11/Scrapyard | Met Revision 17 7 | -11/Scrapyard | Discovered new exit (range 16) 108 | -11/Scrapyard | Entered Materials 301 | -10/Materials | Build established: Mutant 309 | -10/Materials | Discovered new exit (range 8) 541 | -10/Materials | Discovered new exit (range 10) 642 | -10/Materials | Discovered new exit (range 9) 664 | -10/Materials | Entered Subcaves 665 | -10/Subcaves | Approached by a straggling Scientist 799 | -10/Subcaves | Ambushed by swarm of Subdwellers 828 | -10/Subcaves | Core integrity fell below 50% 830 | -10/Subcaves | Core integrity fell below 20% 831 | -10/Subcaves | Destroyed by 4M-UXE(R) with Subdweller Laser Last Messages --------------- UY-VAL(g) destroyed. Lgt. Assault Rifle destroyed. BE-K5G(c): "I think it's somewhere southwest of here" 9M-OAM(g) destroyed. Lgt. Treads destroyed. 85-WJR(R) heat spikes uncontrollably. Subatomizers dissect the Myomer Leg. Lgt. Assault Rifle destroyed. AW-7O5(R) suffers critical hit (Burn). AW-7O5(R) destroyed. 85-WJR(R) heat damages Sub. Monowheel. Ion Engine destroyed. Lgt. Treads destroyed. 3E-EAU(g) destroyed. EM Pulse Gun destroyed. NN-RR0(R) destroyed. Acquired Beamcaster. Subatomizers dissect the Beamcaster. 4R-06T(R) destroyed. Map ----- +----------------------------------------------------+ | | | ?????????????????????????????????????????????????? | | ?????????????????????????????????????????????????? | | ?????????????????????????????????????????????????? | | ?????????????????????????????????????????????????? | | ?????????????????????????????????????????????????? | | ?????????????????????????????????????????????????? | | ?????????????????????????????????????????????????? | | ?????????????????????????????????????????????????? | | ?????????????????????????????????????????????????? | | ?????????????????????????????????????????????????? | | ?????????????????????????????????????????????????? | | ?????????????????????????????????????????????????? | | ?????????????????????????????????????????????????? | | ?????????????????????????????????????????????????? | | ?????????????????????????????????????????????????? | | ????????????????####????####?????????????????????? | | ????????????????# ???# ##?????????????????#### | | ?????????????????# #??# ????#????????????# # | | ??????????????????# ### ?????# #??????????# | | ???????????????????# ?????# #??????????### | | ????????????????????# #?#### # #???????????## | | ????????????????????# ##% #"### #?????####### | | ????????????????????# *R*!"" ### ###### ## | | ???????????????????## !!%=""" #?# ## ### | | ??????????????????## @*![[& #????## ####?## | | ??????????????????# !%=%R #?????####???## ## | | ??????????????????# =!%%R #???????????## ### | | ??????????????????## # !=# #??????????## # #? | | ???????????????????# # ##?##?????????## ###? | | ???????????????????# ?# #????????????## ## #?? | | ??????????????????# ?# ##???????????## ##?#??? | | ?????????????????# ?## ##??###?????## ##?????? | | ?????????????????# ?# #### #????##"##??????? | | ???????????????? ??##c #?#### ##???????? | | ??????????????? ???# ### ##????????? | | ?????????????? ????# # ## ####?????????? | | ?????????????? ????######## # ##????????????? | | ????????????????#? ????????????# ##?????????????? | | ???????????????????????????????####??????????????? | | ?????????????????????????????????????????????????? | | ?????????????????????????????????????????????????? | | ?????????????????????????????????????????????????? | | ?????????????????????????????????????????????????? | | ?????????????????????????????????????????????????? | | ?????????????????????????????????????????????????? | | ?????????????????????????????????????????????????? | | ?????????????????????????????????????????????????? | | ?????????????????????????????????????????????????? | | ?????????????????????????????????????????????????? | +----------------------------------------------------+ Best States ------------- Heat Dissipation 25 Energy Generation 10 Energy Capacity 250 Matter Stores 300 Matter Capacity 300 Sight Range 16 Terrain Scan Density 10 Armor Coverage 800 Propulsion Shielding 33 Evasion (%) 40 Recoil Reduction 2 Item Schematics ----------------- None Robot Schematics ------------------ None Fabricated ------------ Nothing Repaired ---------- Nothing Alien Tech Used ----------------- None Achievements -------------- None Challenges ------------ None Game ------ Seed MediumBlanketBeacon Manual? 0 Play Time 00:07:46 Cumulative 198.5 hours Start 2025.09.12 @ 16:38:12 End 2025.09.12 @ 16:44:21 Sessions 1 Manual Loads 0 Difficulty Rogue Special Mode None Game No. 170 Rogue 170 Adventurer 0 Explorer 0 Win Type - Total 10 Types 4/0/2/2/1/0/0/0/0/1 Lore% 89 Gallery% 84 Achievement% 66 Wizard Run 0 Options --------- Layout 1 ASCII 0 Keyboard 0 Movement Numpad Keybinds 0 Fullscreen 1 Font 24/Proggy Map View 50x35 Zoom Use 0% Tactical HUD 0 Map Filters NONE Filters NONE Steam 1 RUN: 67df3f02-25b0-45c5-91dc-75981b68658c